[Event "EYTCC Girls U18 2022"]
[Site "Thessaloniki"]
[Date "2022.07.13"]
[Round "2.5"]
[White "Levitan, Ronit"]
[Black "Bondar, Daria"]
[Result "*"]
[ECO "D37"]
[WhiteElo "2084"]
[BlackElo "1566"]
[Annotator "ChessBase"]
[PlyCount "26"]
[EventDate "2022.07.12"]
[EventType "team-tourn"]
[EventCountry "GRE"]
[SourceTitle "playchess.com"]
[Source "ChessBase"]
[SourceQuality "1"]
[WhiteTeam "Israel"]
[BlackTeam "Ukraine"]
[WhiteTeamCountry "ISR"]
[BlackTeamCountry "UKR"]
[TimeControl "40/5400+30:1800+30"]

1. d4 {[%emt 0:00:03]} d5 {[%emt 0:00:09]} 2. c4 {[%emt 0:00:05]} e6 {[%emt 0:00:06]} 3. Nc3 {[%emt 0:00:06]} Nf6 {[%emt 0:00:09]} 4. Nf3 {[%emt 0:00:12]} Be7 {[%emt 0:02:14]} 5. Bg5 {[%emt 0:00:18]} h6 {[%emt 0:00:29]} 6. Bh4 {[%emt 0:00:07]} O-O {[%emt 0:00:24]} 7. e3 {[%emt 0:00:33]} b6 {[%emt 0:00:26]} 8. cxd5 {[%emt 0:00:53]} Nxd5 {[%emt 0:00:27]} 9. Bxe7 {[%emt 0:01:50]} Qxe7 {[%emt 0:00:28]} 10. Nxd5 {[%emt 0:03:10]} exd5 {[%emt 0:00:17]} 11. Qb3 {[%emt 0:02:49]} Be6 {[%emt 0:01:45]} 12. Be2 {[%emt 0:04:06]} c5 {[%emt 0:01:51]} 13. O-O {[%emt 0:02:31]} Nd7 {[%emt 0:06:05]} *

[Event "EYTCC Girls U18 2022"]
[Site "Thessaloniki"]
[Date "2022.07.13"]
[Round "2.5"]
[White "Dereka, Konstantina"]
[Black "Ziegenfuss, Antonia"]
[Result "0-1"]
[ECO "D59"]
[WhiteElo "1451"]
[BlackElo "2170"]
[Annotator "ChessBase"]
[PlyCount "68"]
[EventDate "2022.07.12"]
[EventType "team-tourn"]
[EventCountry "GRE"]
[SourceTitle "playchess.com"]
[Source "ChessBase"]
[SourceQuality "1"]
[WhiteTeam "Greece"]
[BlackTeam "Germany"]
[WhiteTeamCountry "GRE"]
[BlackTeamCountry "GER"]
[TimeControl "40/5400+30:1800+30"]

1. d4 {[%emt 0:00:03]} d5 {[%emt 0:00:09]} 2. c4 {[%emt 0:00:05]} e6 {[%emt 0:00:06]} 3. Nc3 {[%emt 0:00:06]} Nf6 {[%emt 0:00:09]} 4. Nf3 {[%emt 0:00:12]} Be7 {[%emt 0:02:14]} 5. Bg5 {[%emt 0:00:18]} h6 {[%emt 0:00:29]} 6. Bh4 {[%emt 0:00:07]} O-O {[%emt 0:00:24]} 7. e3 {[%emt 0:00:33]} b6 {[%emt 0:00:26]} 8. cxd5 {[%emt 0:00:53]} Nxd5 {[%emt 0:00:27]} 9. Bxe7 {[%emt 0:01:50]} Qxe7 {[%emt 0:00:28]} 10. Nxd5 {[%emt 0:03:10]} exd5 {[%emt 0:00:17]} 11. Qb3 {[%emt 0:02:49]} Be6 {[%emt 0:01:45]} 12. Be2 {[%emt 0:04:06]} c5 {[%emt 0:01:51]} 13. O-O {[%emt 0:02:31]} Nd7 {[%emt 0:06:05]} 14. Rac1 {[%emt 0:03:30]} Rfc8 {[%emt 0:03:54]} 15. Rfd1 {[%emt 0:03:15]} a5 {[%emt 0:04:12]} 16. a4 {[%emt 0:03:23]} g6 {[%emt 0:20:51]} 17. h3 {[%emt 0:10:59]} c4 {[%emt 0:04:09]} 18. Qa2 {[%emt 0:01:31]} Qb4 {[%emt 0:04:25]} 19. Rc3 {[%emt 0:07:42]} b5 {[%emt 0:09:26]} 20. axb5 {[%emt 0:04:31]} Nb6 {[%emt 0:00:14]} 21. Ra3 {[%emt 0:10:31]} Bd7 {[%emt 0:04:48]} 22. Ne5 {[%emt 0:04:17]} Bxb5 {[%emt 0:02:03]} 23. Qb1 {[%emt 0:01:52]} c3 {[%emt 0:02:44]} 24. Bd3 {[%emt 0:08:57]} Bxd3 {[%emt 0:08:46]} 25. Qxd3 {[%emt 0:05:07]} c2 {[%emt 0:00:46]} 26. Rc1 {[%emt 0:00:18]} Qxb2 {[%emt 0:01:22]} 27. Raa1 {[%emt 0:00:44]} Rc3 {[%emt 0:01:31]} 28. Qd2 {[%emt 0:02:20]} Nc4 {[%emt 0:04:10]} 29. Nxc4 {[%emt 0:02:54]} Rxc4 {[%emt 0:00:15]} 30. Kh2 {[%emt 0:00:54]} a4 {[%emt 0:03:01]} 31. f3 {[%emt 0:01:05]} a3 {[%emt 0:01:07]} 32. e4 {[%emt 0:00:33]} dxe4 {[%emt 0:02:06]} 33. fxe4 {[%emt 0:00:07]} a2 {[%emt 0:00:47]} 34. d5 {[%emt 0:00:55]} Rac8 {[%emt 0:05:08]} 0-1

[Event "EYTCC Girls U18 2022"]
[Site "Thessaloniki"]
[Date "2022.07.13"]
[Round "2.6"]
[White "Bashylina, Luisa"]
[Black "Kapia, Aggeliki"]
[Result "1-0"]
[ECO "D35"]
[WhiteElo "2041"]
[BlackElo "1230"]
[Annotator "ChessBase"]
[PlyCount "63"]
[EventDate "2022.07.12"]
[EventType "team-tourn"]
[EventCountry "GRE"]
[SourceTitle "playchess.com"]
[Source "ChessBase"]
[SourceQuality "1"]
[WhiteTeam "Germany"]
[BlackTeam "Greece"]
[WhiteTeamCountry "GER"]
[BlackTeamCountry "GRE"]
[TimeControl "40/5400+30:1800+30"]

1. d4 {[%emt 0:00:02]} Nf6 {[%emt 0:00:23]} 2. c4 {[%emt 0:00:05]} e6 {[%emt 0:00:18]} 3. Nc3 {[%emt 0:00:04]} d5 {[%emt 0:00:38]} 4. cxd5 {[%emt 0:00:04]} exd5 {[%emt 0:00:09]} 5. Bg5 {[%emt 0:00:03]} c6 {[%emt 0:01:43]} 6. e3 {[%emt 0:00:10]} Bd6 {[%emt 0:01:15]} 7. Bd3 {[%emt 0:00:34]} Nbd7 {[%emt 0:01:17]} 8. Nge2 {[%emt 0:00:32]} O-O {[%emt 0:00:44]} 9. h3 {[%emt 0:00:08]} b5 {[%emt 0:07:36]} 10. O-O {[%emt 0:01:43]} Bb7 {[%emt 0:01:52]} 11. Qc2 {[%emt 0:00:45]} h6 {[%emt 0:00:38]} 12. Bf4 {[%emt 0:08:46]} Bxf4 {[%emt 0:13:02]} 13. Nxf4 {[%emt 0:01:26]} Re8 {[%emt 0:02:55]} 14. Rad1 {[%emt 0:04:54]} Rc8 {[%emt 0:09:06]} 15. Bf5 {[%emt 0:09:40]} Ra8 {[%emt 0:17:31]} 16. Rfe1 {[%emt 0:08:15]} Nb6 {[%emt 0:04:11]} 17. Nd3 {[%emt 0:12:56]} Nc4 18. Nc5 {[%emt 0:01:59]} Bc8 {[%emt 0:11:47]} 19. Bd3 {[%emt 0:01:37]} Bd7 {[%emt 0:08:57]} 20. Bxc4 {[%emt 0:06:07]} bxc4 {[%emt 0:00:38]} 21. e4 {[%emt 0:01:03]} dxe4 {[%emt 0:06:11]} 22. N3xe4 {[%emt 0:04:38]} Nxe4 {[%emt 0:01:14]} 23. Rxe4 {[%emt 0:01:22]} Rxe4 {[%emt 0:01:38]} 24. Qxe4 {[%emt 0:00:30]} Qe8 {[%emt 0:01:05]} 25. Qc2 {[%emt 0:04:15]} Rb8 {[%emt 0:04:22]} 26. Qc3 {[%emt 0:05:48]} Be6 {[%emt 0:03:31]} 27. Re1 {[%emt 0:00:22]} Qc8 {[%emt 0:00:24]} 28. Nxe6 {[%emt 0:00:58]} fxe6 {[%emt 0:00:11]} 29. Qxc4 {[%emt 0:00:13]} Rxb2 {[%emt 0:00:54]} 30. Rxe6 {[%emt 0:00:08]} Kh7 {[%emt 0:00:44]} 31. Qd3+ {[%emt 0:01:13]} Kg8 {[%emt 0:00:24]} 32. Qg6 {[%emt 0:02:27]} 1-0

[Event "EYTCC Girls U18 2022"]
[Site "Thessaloniki"]
[Date "2022.07.13"]
[Round "2.6"]
[White "Sheikh, Anum"]
[Black "Kara, Gulce Nehir"]
[Result "*"]
[ECO "D35"]
[WhiteElo "1799"]
[BlackElo "1907"]
[Annotator "ChessBase"]
[PlyCount "23"]
[EventDate "2022.07.12"]
[EventType "team-tourn"]
[EventCountry "GRE"]
[SourceTitle "playchess.com"]
[Source "ChessBase"]
[SourceQuality "1"]
[WhiteTeam "England"]
[BlackTeam "Turkey"]
[WhiteTeamCountry "ENG"]
[BlackTeamCountry "TUR"]
[TimeControl "40/5400+30:1800+30"]

1. d4 {[%emt 0:00:02]} Nf6 {[%emt 0:00:23]} 2. c4 {[%emt 0:00:05]} e6 {[%emt 0:00:18]} 3. Nc3 {[%emt 0:00:04]} d5 {[%emt 0:00:38]} 4. cxd5 {[%emt 0:00:04]} exd5 {[%emt 0:00:09]} 5. Bg5 {[%emt 0:00:03]} c6 {[%emt 0:01:43]} 6. e3 {[%emt 0:00:10]} Bd6 {[%emt 0:01:15]} 7. Bd3 {[%emt 0:00:34]} Nbd7 {[%emt 0:01:17]} 8. Nge2 {[%emt 0:00:32]} O-O {[%emt 0:00:44]} 9. h3 {[%emt 0:00:08]} b5 {[%emt 0:07:36]} 10. O-O {[%emt 0:01:43]} Bb7 {[%emt 0:01:52]} 11. Qc2 {[%emt 0:00:45]} h6 {[%emt 0:00:38]} 12. Bf4 {[%emt 0:08:46]} *

[Event "EYTCC Girls U18 2022"]
[Site "Thessaloniki"]
[Date "2022.07.13"]
[Round "2.7"]
[White "Ciolacu, Alessia-Mihaela"]
[Black "Marcinczyk, Monika"]
[Result "*"]
[ECO "A15"]
[WhiteElo "2163"]
[BlackElo "1991"]
[Annotator "ChessBase"]
[PlyCount "23"]
[EventDate "2022.07.12"]
[EventType "team-tourn"]
[EventCountry "GRE"]
[SourceTitle "playchess.com"]
[Source "ChessBase"]
[SourceQuality "1"]
[WhiteTeam "Romania"]
[BlackTeam "Poland"]
[WhiteTeamCountry "ROU"]
[BlackTeamCountry "POL"]
[TimeControl "40/5400+30:1800+30"]

1. c4 {[%emt 0:00:02]} Nf6 {[%emt 0:00:11]} 2. g3 {[%emt 0:00:05]} c5 {[%emt 0:00:43]} 3. Bg2 {[%emt 0:00:06]} d5 {[%emt 0:01:02]} 4. cxd5 {[%emt 0:00:09]} Nxd5 {[%emt 0:00:06]} 5. Nc3 {[%emt 0:00:04]} Nc7 {[%emt 0:00:24]} 6. Nf3 {[%emt 0:00:14]} Nc6 {[%emt 0:01:39]} 7. O-O {[%emt 0:00:18]} e5 {[%emt 0:01:27]} 8. a3 {[%emt 0:00:25]} Be6 {[%emt 0:08:10]} 9. b4 {[%emt 0:01:31]} cxb4 {[%emt 0:00:24]} 10. axb4 {[%emt 0:00:06]} a6 {[%emt 0:00:37]} 11. Ba3 {[%emt 0:02:44]} f6 {[%emt 0:04:59]} 12. Qb1 {[%emt 0:04:15]} *

[Event "EYTCC Girls U18 2022"]
[Site "Thessaloniki"]
[Date "2022.07.13"]
[Round "2.7"]
[White "Buchholz, Maja"]
[Black "Rozmanec, Pia"]
[Result "1/2-1/2"]
[ECO "A34"]
[WhiteElo "1879"]
[BlackElo "1642"]
[Annotator "NA"]
[PlyCount "168"]
[EventDate "2022.07.12"]
[EventType "team-tourn"]
[EventCountry "GRE"]
[SourceTitle "playchess.com"]
[Source "ChessBase"]
[SourceQuality "1"]
[WhiteTeam "Germany"]
[BlackTeam "Slovenia"]
[WhiteTeamCountry "GER"]
[BlackTeamCountry "SLO"]
[TimeControl "40/5400+30:1800+30"]

1. c4 {[%emt 0:00:02]} Nf6 {[%emt 0:00:11]} 2. g3 {[%emt 0:00:05]} c5 {[%emt 0:00:43]} 3. Bg2 {[%emt 0:00:06]} d5 {[%emt 0:01:02]} 4. cxd5 {[%emt 0:00:09]} Nxd5 {[%emt 0:00:06]} 5. Nc3 {[%emt 0:00:04]} Nc7 {[%emt 0:00:24]} 6. Nf3 {[%emt 0:00:14]} Nc6 {[%emt 0:01:39]} 7. O-O {[%emt 0:00:18]} e5 {[%emt 0:01:27]} 8. a3 {[%emt 0:00:25]} Be6 {[%emt 0:08:10]} 9. b4 {[%emt 0:01:31]} cxb4 {[%emt 0:00:24]} 10. axb4 {[%emt 0:00:06]} a6 {[%emt 0:00:37]} 11. Ba3 {[%emt 0:02:44]} f6 {[%emt 0:04:59]} 12. Qb1 {[%emt 0:04:15]} Na7 {[%emt 0:18:41]} 13. Na4 {[%emt 0:07:59]} Nab5 {[%emt 0:02:20]} 14. Bc1 {[%emt 0:13:49]} Rb8 {[%emt 0:09:55]} 15. Nc5 {[%emt 0:01:35]} Bxc5 {[%emt 0:10:14]} 16. bxc5 {[%emt 0:00:11]} Bd5 {[%emt 0:01:52]} 17. d3 {[%emt 0:01:37]} O-O {[%emt 0:01:35]} 18. Be3 {[%emt 0:01:46]} Qe7 {[%emt 0:02:46]} 19. Bd2 {[%emt 0:24:01]} Bc6 {[%emt 0:07:21]} 20. Bb4 {[%emt 0:01:58]} Rfe8 {[%emt 0:08:03]} 21. Rd1 {[%emt 0:07:33]} Kh8 {[%emt 0:03:50]} 22. e3 {[%emt 0:00:43]} Nd5 {[%emt 0:01:32]} 23. Qb3 {[%emt 0:02:15]} Nxb4 {[%emt 0:01:44]} 24. Qxb4 {[%emt 0:00:06]} Nc7 {[%emt 0:04:24]} 25. d4 {[%emt 0:01:01]} exd4 {[%emt 0:03:47]} 26. exd4 {[%emt 0:00:30]} Bd5 {[%emt 0:00:32]} 27. Rab1 {[%emt 0:07:56]} Qe2 {[%emt 0:03:06]} 28. Rd2 {[%emt 0:02:21]} Qb5 {[%emt 0:00:24]} 29. Qxb5 {[%emt 0:02:47]} Nxb5 {[%emt 0:00:06]} 30. Nh4 {[%emt 0:02:58]} Red8 {[%emt 0:01:27]} 31. Rbd1 {[%emt 0:03:19]} Nc3 {[%emt 0:00:59]} 32. Re1 {[%emt 0:00:38]} g6 {[%emt 0:01:08]} 33. Re3 {[%emt 0:05:10]} Bxg2 {[%emt 0:00:39]} 34. Nxg2 {[%emt 0:00:25]} Nd5 {[%emt 0:00:20]} 35. Re6 {[%emt 0:00:47]} Kg7 {[%emt 0:00:33]} 36. Ne3 {[%emt 0:01:59]} Kf7 {[%emt 0:00:37]} 37. Re4 {[%emt 0:00:19]} Rd7 {[%emt 0:00:44]} 38. Nc4 {[%emt 0:02:20]} Rbd8 {[%emt 0:00:31]} 39. Nd6+ {[%emt 0:00:22]} Kg7 {[%emt 0:00:28]} 40. Re1 {[%emt 0:00:00]} b6 {[%emt 0:00:00]} 41. Ne8+ {[%emt 0:09:24]} Kf8 {[%emt 0:05:58]} 42. Nd6 {[%emt 0:06:31]} Kg7 {[%emt 0:13:23]} 43. Kg2 {[%emt 0:02:47]} bxc5 {[%emt 0:07:45]} 44. dxc5 {[%emt 0:00:13]} Ne7 {[%emt 0:00:15]} 45. Ra2 {[%emt 0:01:37]} Nc8 46. Rxa6 {[%emt 0:09:29]} Nxd6 {[%emt 0:01:30]} 47. cxd6 {[%emt 0:00:22]} Kf7 {[%emt 0:02:05]} 48. Rc1 {[%emt 0:02:30]} Rxd6 {[%emt 0:02:26]} 49. Rc7+ {[%emt 0:00:16]} R6d7 {[%emt 0:00:22]} 50. Rcc6 {[%emt 0:01:44]} f5 {[%emt 0:00:20]} 51. h4 {[%emt 0:00:29]} Kg8 {[%emt 0:01:47]} 52. Kf3 {[%emt 0:01:41]} Rd3+ {[%emt 0:00:33]} 53. Kf4 {[%emt 0:01:30]} Rd2 {[%emt 0:00:41]} 54. Kg5 {[%emt 0:00:45]} Rxf2 {[%emt 0:00:33]} 55. Rc7 {[%emt 0:00:16]} Rfd2 {[%emt 0:00:20]} 56. Raa7 {[%emt 0:00:21]} R2d6 {[%emt 0:00:20]} 57. Rxh7 {[%emt 0:00:20]} f4 {[%emt 0:00:43]} 58. gxf4 {[%emt 0:00:31]} Rd5+ {[%emt 0:00:15]} 59. Kg4 {[%emt 0:00:28]} R5d6 {[%emt 0:00:41]} 60. Rag7+ {[%emt 0:00:53]} Kf8 {[%emt 0:00:09]} 61. Rf7+ {[%emt 0:00:24]} Kg8 {[%emt 0:00:37]} 62. Rhg7+ {[%emt 0:00:32]} Kh8 {[%emt 0:00:04]} 63. h5 {[%emt 0:01:11]} gxh5+ {[%emt 0:00:35]} 64. Kxh5 {[%emt 0:00:03]} Rd1 {[%emt 0:01:10]} 65. Rg4 {[%emt 0:00:46]} Rh1+ {[%emt 0:00:24]} 66. Kg6 {[%emt 0:00:36]} Rd6+ {[%emt 0:00:16]} 67. Kf5 {[%emt 0:00:54]} Rh5+ {[%emt 0:00:25]} 68. Rg5 {[%emt 0:00:37]} Rd5+ {[%emt 0:00:34]} 69. Kg6 {[%emt 0:00:35]} Rhxg5+ 70. fxg5 {[%emt 0:00:05]} Kg8 {[%emt 0:00:37]} 71. Rf6 {[%emt 0:00:30]} Rd7 {[%emt 0:00:48]} 72. Kh6 {[%emt 0:00:42]} Rh7+ {[%emt 0:00:17]} 73. Kg6 {[%emt 0:00:03]} Rg7+ {[%emt 0:00:09]} 74. Kf5 {[%emt 0:00:06]} Rf7 {[%emt 0:00:52]} 75. Ke6 {[%emt 0:00:35]} Rb7 {[%emt 0:00:33]} 76. Kf5 {[%emt 0:00:30]} Rf7 {[%emt 0:00:19]} 77. Ke6 {[%emt 0:00:04]} Rb7 {[%emt 0:00:04]} 78. Ke5 {[%emt 0:00:06]} Rb5+ {[%emt 0:01:05]} 79. Kf4 {[%emt 0:00:07]} Kg7 {[%emt 0:00:13]} 80. Kg4 {[%emt 0:01:03]} Rb1 {[%emt 0:00:28]} 81. Rf4 {[%emt 0:01:00]} Kg6 {[%emt 0:00:32]} 82. Rf6+ {[%emt 0:00:24]} Kg7 {[%emt 0:00:06]} 83. Kf5 {[%emt 0:00:58]} Rf1+ {[%emt 0:00:27]} 84. Ke6 {[%emt 0:00:09]} Re1+ {[%emt 0:00:07]} 1/2-1/2

[Event "EYTCC Girls U18 2022"]
[Site "Thessaloniki"]
[Date "2022.07.13"]
[Round "2.8"]
[White "Guid, Taja"]
[Black "Werner, Rosalie"]
[Result "0-1"]
[ECO "C02"]
[WhiteElo "1479"]
[BlackElo "1783"]
[Annotator "NA"]
[PlyCount "90"]
[EventDate "2022.07.12"]
[EventType "team-tourn"]
[EventCountry "GRE"]
[SourceTitle "playchess.com"]
[Source "ChessBase"]
[SourceQuality "1"]
[WhiteTeam "Slovenia"]
[BlackTeam "Germany"]
[WhiteTeamCountry "SLO"]
[BlackTeamCountry "GER"]
[TimeControl "40/5400+30:1800+30"]

1. e4 e6 2. d4 d5 3. e5 c5 4. c3 Nc6 5. Nf3 Qb6 6. Bd3 cxd4 7. O-O Bd7 8. Re1 Rc8 9. Nbd2 dxc3 10. bxc3 Na5 11. Rb1 Qc7 12. Bb2 a6 13. Ng5 g6 14. h4 Bb5 15. Bxb5+ axb5 16. Ba1 Qd7 17. Qf3 h6 18. Nh3 Nc4 19. Nxc4 bxc4 20. Bb2 Ra8 21. Ra1 Bg7 22. Bc1 Ne7 23. Bf4 Nc6 24. Kh2 Qc7 25. Qe3 Nb8 26. Ng1 Nd7 27. Nf3 Ra3 28. Re2 Qa5 29. Rc2 Nc5 30. Nd4 Ne4 31. Ne2 g5 32. Bg3 gxh4 33. Bf4 Kd7 34. f3 Nc5 35. Nd4 Nd3 36. Ne2 Qc7 37. Kh3 Bxe5 38. Bxh6 Bg3 39. Nd4 Bh2 40. Ne2 Bg3 41. Rf1 Raa8 42. Bg7 Rh7 43. Bf6 Rg8 44. Rd2 Nf4+ 45. Nxf4 Bxf4 0-1

[Event "EYTCC Girls U18 2022"]
[Site "Thessaloniki"]
[Date "2022.07.13"]
[Round "2.9"]
[White "Levitan, Ronit"]
[Black "Bondar, Daria"]
[Result "1/2-1/2"]
[ECO "C54"]
[WhiteElo "2084"]
[BlackElo "1566"]
[Annotator "ChessBase"]
[PlyCount "94"]
[EventDate "2022.07.12"]
[EventType "team-tourn"]
[EventCountry "GRE"]
[SourceTitle "playchess.com"]
[Source "ChessBase"]
[SourceQuality "1"]
[WhiteTeam "Israel"]
[BlackTeam "Ukraine"]
[WhiteTeamCountry "ISR"]
[BlackTeamCountry "UKR"]
[TimeControl "40/5400+30:1800+30"]

1. e4 {[%emt 0:00:40]} e5 {[%emt 0:00:07]} 2. Nf3 {[%emt 0:00:07]} Nc6 {[%emt 0:00:07]} 3. Bc4 {[%emt 0:00:06]} Bc5 {[%emt 0:00:20]} 4. c3 {[%emt 0:00:11]} Nf6 {[%emt 0:00:06]} 5. d3 {[%emt 0:00:06]} a6 {[%emt 0:00:21]} 6. Nbd2 {[%emt 0:00:56]} d6 {[%emt 0:00:27]} 7. h3 {[%emt 0:01:01]} O-O {[%emt 0:03:41]} 8. Bb3 {[%emt 0:01:10]} Be6 {[%emt 0:00:48]} 9. Nf1 {[%emt 0:02:27]} d5 {[%emt 0:01:14]} 10. Qe2 {[%emt 0:00:15]} dxe4 {[%emt 0:00:27]} 11. dxe4 {[%emt 0:00:10]} Bxb3 {[%emt 0:00:09]} 12. axb3 {[%emt 0:00:07]} Ne8 {[%emt 0:00:41]} 13. Ng3 {[%emt 0:01:35]} Nd6 {[%emt 0:02:13]} 14. b4 {[%emt 0:02:08]} Ba7 {[%emt 0:00:29]} 15. O-O {[%emt 0:01:02]} Qf6 {[%emt 0:02:16]} 16. Bg5 {[%emt 0:16:04]} Qe6 {[%emt 0:04:49]} 17. Nh4 {[%emt 0:01:51]} f6 {[%emt 0:06:29]} 18. Be3 {[%emt 0:03:04]} Bxe3 {[%emt 0:02:47]} 19. Qxe3 {[%emt 0:06:27]} Ne7 {[%emt 0:12:29]} 20. Qc5 {[%emt 0:10:41]} Qc4 {[%emt 0:13:54]} 21. Rfd1 {[%emt 0:01:02]} Rad8 {[%emt 0:03:35]} 22. b3 {[%emt 0:12:08]} Qxc5 {[%emt 0:04:05]} 23. bxc5 {[%emt 0:00:07]} Nb5 {[%emt 0:05:19]} 24. Ne2 {[%emt 0:00:32]} Nc6 {[%emt 0:03:25]} 25. Nf5 {[%emt 0:00:58]} Rxd1+ {[%emt 0:07:59]} 26. Rxd1 {[%emt 0:00:08]} Rd8 {[%emt 0:00:03]} 27. Rd5 {[%emt 0:04:22]} Kf7 {[%emt 0:04:05]} 28. g4 {[%emt 0:03:52]} g6 {[%emt 0:05:41]} 29. Ne3 {[%emt 0:00:15]} Nba7 {[%emt 0:03:15]} 30. Kg2 {[%emt 0:03:08]} Nc8 {[%emt 0:01:47]} 31. b4 {[%emt 0:11:33]} N8e7 {[%emt 0:01:52]} 32. Rxd8 {[%emt 0:00:18]} Nxd8 {[%emt 0:00:03]} 33. Nc4 {[%emt 0:01:27]} Ke6 {[%emt 0:01:55]} 34. Kg3 {[%emt 0:01:38]} g5 {[%emt 0:05:18]} 35. h4 {[%emt 0:00:40]} Ng6 {[%emt 0:03:01]} 36. h5 {[%emt 0:00:28]} Nf4 {[%emt 0:01:09]} 37. Kf3 {[%emt 0:02:13]} Nc6 {[%emt 0:01:42]} 38. Ng3 {[%emt 0:03:23]} Na7 {[%emt 0:00:48]} 39. Nb2 {[%emt 0:04:31]} Nb5 {[%emt 0:00:30]} 40. Na4 {[%emt 0:00:00]} Kd7 {[%emt 0:00:00]} 41. Nf5 {[%emt 0:01:09]} Na3 {[%emt 0:12:58]} 42. Ne3 {[%emt 0:07:32]} Ke6 {[%emt 0:01:43]} 43. Nb2 {[%emt 0:11:23]} Nb1 {[%emt 0:05:25]} 44. Ned1 {[%emt 0:00:50]} Nd2+ {[%emt 0:09:03]} 45. Ke3 {[%emt 0:00:09]} Nf1+ {[%emt 0:00:11]} 46. Kf3 {[%emt 0:00:07]} Nd2+ {[%emt 0:00:21]} 47. Ke3 {[%emt 0:00:05]} Nf1+ {[%emt 0:00:08]} 1/2-1/2

[Event "EYTCC Girls U18 2022"]
[Site "Thessaloniki"]
[Date "2022.07.13"]
[Round "2.9"]
[White "Bashylina, Luisa"]
[Black "Kapia, Aggeliki"]
[Result "*"]
[ECO "C54"]
[WhiteElo "2041"]
[BlackElo "1230"]
[Annotator "ChessBase"]
[PlyCount "30"]
[EventDate "2022.07.12"]
[EventType "team-tourn"]
[EventCountry "GRE"]
[SourceTitle "playchess.com"]
[Source "ChessBase"]
[SourceQuality "1"]
[WhiteTeam "Germany"]
[BlackTeam "Greece"]
[WhiteTeamCountry "GER"]
[BlackTeamCountry "GRE"]
[TimeControl "40/5400+30:1800+30"]

1. e4 {[%emt 0:00:40]} e5 {[%emt 0:00:07]} 2. Nf3 {[%emt 0:00:07]} Nc6 {[%emt 0:00:07]} 3. Bc4 {[%emt 0:00:06]} Bc5 {[%emt 0:00:20]} 4. c3 {[%emt 0:00:11]} Nf6 {[%emt 0:00:06]} 5. d3 {[%emt 0:00:06]} a6 {[%emt 0:00:21]} 6. Nbd2 {[%emt 0:00:56]} d6 {[%emt 0:00:27]} 7. h3 {[%emt 0:01:01]} O-O {[%emt 0:03:41]} 8. Bb3 {[%emt 0:01:10]} Be6 {[%emt 0:00:48]} 9. Nf1 {[%emt 0:02:27]} d5 {[%emt 0:01:14]} 10. Qe2 {[%emt 0:00:15]} dxe4 {[%emt 0:00:27]} 11. dxe4 {[%emt 0:00:10]} Bxb3 {[%emt 0:00:09]} 12. axb3 {[%emt 0:00:07]} Ne8 {[%emt 0:00:41]} 13. Ng3 {[%emt 0:01:35]} Nd6 {[%emt 0:02:13]} 14. b4 {[%emt 0:02:08]} Ba7 {[%emt 0:00:29]} 15. O-O {[%emt 0:01:02]} Qf6 {[%emt 0:02:16]} *

[Event "EYTCC Girls U18 2022"]
[Site "Thessaloniki"]
[Date "2022.07.13"]
[Round "2.10"]
[White "Russeva, Viktoria"]
[Black "Kochavi, Dana"]
[Result "0-1"]
[ECO "B10"]
[WhiteElo "1866"]
[BlackElo "1885"]
[Annotator "NA"]
[PlyCount "90"]
[EventDate "2022.07.12"]
[EventType "team-tourn"]
[EventCountry "GRE"]
[SourceTitle "playchess.com"]
[Source "ChessBase"]
[SourceQuality "1"]
[WhiteTeam "Ukraine"]
[BlackTeam "Israel"]
[WhiteTeamCountry "UKR"]
[BlackTeamCountry "ISR"]
[TimeControl "40/5400+30:1800+30"]

1. e4 {[%emt 0:00:03]} c6 {[%emt 0:00:05]} 2. Nc3 {[%emt 0:00:10]} d5 {[%emt 0:00:06]} 3. Nf3 {[%emt 0:00:15]} dxe4 {[%emt 0:00:05]} 4. Nxe4 {[%emt 0:00:06]} Nf6 {[%emt 0:00:08]} 5. Qe2 {[%emt 0:00:57]} Nxe4 {[%emt 0:00:06]} 6. Qxe4 {[%emt 0:00:06]} Nd7 {[%emt 0:00:03]} 7. d4 {[%emt 0:10:46]} Nf6 {[%emt 0:00:17]} 8. Qe5 {[%emt 0:01:52]} g6 {[%emt 0:09:40]} 9. Bg5 {[%emt 0:06:40]} Bg7 {[%emt 0:00:48]} 10. O-O-O {[%emt 0:02:32]} O-O {[%emt 0:00:24]} 11. Kb1 {[%emt 0:18:50]} Be6 {[%emt 0:05:10]} 12. Bd2 {[%emt 0:04:33]} Nd5 {[%emt 0:12:21]} 13. Qe1 {[%emt 0:06:22]} a5 {[%emt 0:08:07]} 14. c3 {[%emt 0:20:37]} Bf5+ {[%emt 0:06:07]} 15. Ka1 {[%emt 0:01:39]} b5 {[%emt 0:20:30]} 16. Ne5 {[%emt 0:02:33]} Qc7 {[%emt 0:01:47]} 17. g4 {[%emt 0:02:10]} Be6 {[%emt 0:00:07]} 18. Bg2 {[%emt 0:02:15]} Qd6 {[%emt 0:14:12]} 19. h3 {[%emt 0:04:43]} f6 {[%emt 0:00:43]} 20. Nd3 {[%emt 0:00:40]} Bf7 {[%emt 0:01:47]} 21. Qe4 {[%emt 0:03:35]} Nxc3 {[%emt 0:07:44]} 22. Qxc6 {[%emt 0:03:16]} Nxd1 {[%emt 0:00:54]} 23. Qxd6 {[%emt 0:00:24]} exd6 {[%emt 0:00:11]} 24. Bxa8 {[%emt 0:00:33]} Nxf2 {[%emt 0:00:07]} 25. Nxf2 {[%emt 0:00:18]} Rxa8 {[%emt 0:00:03]} 26. Re1 {[%emt 0:01:17]} f5 {[%emt 0:01:20]} 27. gxf5 {[%emt 0:01:09]} gxf5 {[%emt 0:00:07]} 28. Rg1 {[%emt 0:02:00]} Kf8 {[%emt 0:00:49]} 29. Bf4 {[%emt 0:00:23]} Ra6 {[%emt 0:01:06]} 30. Rd1 {[%emt 0:00:14]} Ke7 {[%emt 0:01:57]} 31. d5 {[%emt 0:00:42]} Kd7 {[%emt 0:01:28]} 32. h4 {[%emt 0:00:41]} Ra8 {[%emt 0:00:39]} 33. Nh3 {[%emt 0:01:03]} Re8 {[%emt 0:01:44]} 34. Kb1 {[%emt 0:01:23]} Re2 {[%emt 0:00:52]} 35. Rd2 {[%emt 0:00:17]} Rxd2 {[%emt 0:00:45]} 36. Bxd2 {[%emt 0:00:02]} a4 {[%emt 0:00:28]} 37. Ng5 {[%emt 0:01:10]} Bg8 {[%emt 0:00:08]} 38. b3 {[%emt 0:01:54]} axb3 {[%emt 0:00:05]} 39. axb3 {[%emt 0:00:05]} h6 {[%emt 0:00:04]} 40. Nh3 {[%emt 0:00:00]} Bxd5 {[%emt 0:00:00]} 41. Kc2 {[%emt 0:00:32]} Bf7 {[%emt 0:02:01]} 42. b4 {[%emt 0:00:53]} h5 {[%emt 0:05:34]} 43. Kd3 {[%emt 0:01:46]} Be5 {[%emt 0:02:57]} 44. Bf4 {[%emt 0:02:33]} Bc4+ {[%emt 0:01:20]} 45. Ke3 {[%emt 0:00:12]} Bc3 {[%emt 0:00:29]} 0-1